Cogmind - Beta 10.2 @@@ ROGUE MODE // 2021.06.07 @ 10:41:39 Player: The Scout Result: Destroyed by S-10 Pest with Light Assault Rifle Performance ------------- Evolutions (0) 0 Regions Visited (1) 200 Robots Destroyed (10) 50 Value Destroyed (52) 52 Prototype IDs (0) 0 Alien Tech Used (0) 0 Bonus (0) 0 TOTAL SCORE: 302 Bonus ------- None Cogmind --------- Core Integrity 0/250 Matter 300/300 Energy 100/100 System Corruption 0% Temperature Cool (0) Movement Core (550) Ox10 Location -10/Materials Parts ------- > --- POWER (1) -------- (None) > --- PROPULSION (2) --- (None) > --- UTILITY (2) ------ Large Storage Unit Large Storage Unit > --- WEAPON (2) ------- (None) > --- INVENTORY (16) --- Light Ion Engine Wheel Medium Storage Unit Medium Matter Pod (53) Light Assault Rifle Peak State ------------ > --- POWER ------------ Light Ion Engine > --- PROPULSION ------- Light Treads Light Treads > --- UTILITY ---------- Small Storage Unit Seismic Analyzer > --- WEAPON ----------- Medium Laser Medium Laser > --- INVENTORY -------- Light Ion Engine Light Assault Rifle [Rating: 7] Favorites ----------- Power Light Ion Engine Engine Light Ion Engine Propulsion Light Treads Treads Light Treads Utility Large Storage Unit Storage Large Storage Unit Processor Seismic Analyzer Weapon Medium Laser Energy Gun Medium Laser Build | -11 -10 ------- Run | Scr Mat Slots Evolved . | . . Power . | . . Propulsion . | . . Utility . | . . Weapon . | . . Parts Attached 9 | 7 2 Power 1 | 1 . Engine 1 | 1 . Core . | . . Reactor . | . . Propulsion 2 | 2 . Treads 2 | 2 . Leg . | . . Wheel . | . . Hover . | . . Flight . | . . Utility 4 | 2 2 Device . | . . Storage 3 | 1 2 Processor 1 | 1 . Hackware . | . . Protection . | . . Artifact . | . . Weapon 2 | 2 . Energy Gun 2 | 2 . Energy Cannon . | . . Ballistic Gun . | . . Ballistic Cannon . | . . Launcher . | . . Special Weapon . | . . Impact Weapon . | . . Slashing Weapon . | . . Piercing Weapon . | . . Special Melee Weapon . | . . Unidentified Prototypes . | . . Parts Lost 5 | . 5 Power 1 | . 1 Propulsion 2 | . 2 Utility . | . . Weapon 2 | . 2 Highest Loss Streak 5 | . 5 Average Slot Usage (%) 80 | . 80 Engine 9 | . 9 Treads 23 | . 23 Storage 25 | . 25 Processor 1 | . 1 Energy Gun 19 | . 19 Naked Turns . | . . Heaviest Build 39 | 11 39 Greatest Support 40 | 40 40 Greatest Overweight (x) 10 | . 10 Average Overweight (x) . | . . Largest Inventory Capacity 16 | 6 16 Average Capacity 9 | 5 14 Most Carried 5 | 4 5 Average Carried 2 | 1 3 Final Capacity 16 | 6 16 Final Carried 5 | 2 5 Class Distribution -------------------- 100% | Mutant Dominant Class ---------------- Mutant | -10/Materials Resources | -11 -10 ----------- Run | Scr Mat Matter Collected 290 | 270 20 Remotely . | . . Salvage Created 265 | 195 70 Parts 20 | 14 6 Haulers Intercepted . | . . Recyclers Shooed 1 | 1 . Parts Field Recycled . | . . Retrieved Matter . | . . Parts Self-Destructed . | . . Prevented . | . . Kills | -11 -10 ------- Run | Scr Mat Combat Hostiles Destroyed 1 | . 1 Guns 1 | . 1 Classes Destroyed 5 | 3 2 Worker 3 | 2 1 Builder 1 | . 1 Tunneler 4 | 4 . Recycler 1 | 1 . Swarmer 1 | . 1 Best Kill Streak 3 | 3 2 Combat Bots Only 1 | . 1 Max Kills in Single Turn 1 | 1 1 Gunslinging . | . . Exploded . | . . Melee . | . . Uniques/NPCs Destroyed . | . . Combat | -11 -10 -------- Run | Scr Mat Damage Taken 798 | . 798 Core 258 | . 258 Absorbed by Shields . | . . Core Remaining (%) 100 | 100 . Volleys Fired 21 | 13 8 Largest 2 | 2 2 Hottest 100 | 100 100 Shots Fired 42 | 26 16 Gun 42 | 26 16 Cannon . | . . Launcher . | . . Special . | . . Kinetic . | . . Thermal 42 | 26 16 Explosive . | . . Electromagnetic . | . . Robot Hit Streak 7 | 7 5 Robot Miss Streak 6 | 2 6 Penetration Max . | . . Secondary Targets . | . . Shots Hit Robots 20 | 15 5 Core Hits 11 | 8 3 Critical Hits . | . . Critical Kills . | . . Critical Parts Destroyed . | . . Melee Attacks . | . . Impact . | . . Slashing . | . . Piercing . | . . Sneak Attacks . | . . Combat Hostiles . | . . Follow-up Attacks . | . . Damage Inflicted 302 | 202 100 Guns 293 | 202 91 Cannons . | . . Explosions . | . . Melee . | . . Ramming 9 | . 9 Kinetic . | . . Thermal 293 | 202 91 Explosive . | . . Electromagnetic . | . . Impact . | . . Slashing . | . . Piercing . | . . Highest Corruption . | . . Average Corruption . | . . Corruption Purged . | . . Overload Shots . | . . Overflow Damage . | . . Projectiles . | . . Explosions . | . . Melee . | . . Knockbacks . | . . Impact . | . . Kinetic . | . . Secondary . | . . Self-Inflicted Damage . | . . Shots . | . . Rammed 5 | . 5 Targets Rammed 5 | . 5 Kicked . | . . Crushed . | . . Highest Temperature 195 | 195 156 Average Temperature 68 | 73 59 Received Heat Transfer . | . . Siege Activations . | . . Robots Corrupted . | . . Combat Hostiles . | . . Parts Fried . | . . Impact Corruptions . | . . Robots Melted . | . . Combat Hostiles . | . . Parts Melted 2 | 2 . Heat Transferred 851 | 592 259 Parts Sabotaged . | . . Parts Stolen . | . . Parts Stripped . | . . Power Chain Reactions . | . . Missiles Intercepted . | . . Alert | -11 -10 ------- Run | Scr Mat Peak Influence 62 | 35 62 Initial 22 | . 22 Average 20 | 13 28 Maximum Alert Level . | . . Low Security (%) 100 | 100 100 Level 1 . | . . Level 2 . | . . Level 3 . | . . Level 4 . | . . Level 5 . | . . High Security . | . . Max Security . | . . Squads Dispatched 2 | . 2 Investigation . | . . Extermination . | . . Reinforcement 2 | . 2 Assault . | . . Garrison . | . . Intercept . | . . Construction Impeded . | . . Haulers Reinforced . | . . Stealth | -11 -10 --------- Run | Scr Mat Distress Signals 1 | . 1 Communications Jammed . | . . Distress Signals . | . . Times Spotted 8 | . 8 Peak Tracking Total 5 | . 5 Tactical Retreats . | . . Traps | -11 -10 ------- Run | Scr Mat Traps Triggered . | . . Indirectly . | . . Trap Hack Attempts . | . . Triggered . | . . Disarmed . | . . Reprogrammed . | . . Reused . | . . Traps Extracted . | . . Installed . | . . Triggered . | . . Machines | -11 -10 ---------- Run | Scr Mat Machines Disabled . | . . Max in Single Turn . | . . Machines Sabotaged . | . . Garrisons Compromised . | . . Overloaded Fab Kills . | . . Fab Network Shutdowns . | . . Hacking | -11 -10 --------- Run | Scr Mat Machines Accessed . | . . Terminals . | . . Fabricators . | . . Repair Stations . | . . Recycling Units . | . . Scanalyzers . | . . Garrison Access . | . . Total Hacks . | . . Successful . | . . Failed . | . . Catastrophic . | . . Database Lockouts . | . . Manual . | . . Terminals . | . . Fabricators . | . . Repair Stations . | . . Recycling Units . | . . Scanalyzers . | . . Garrison Access . | . . Terminal Hacks . | . . Fabricator Hacks . | . . Repair Station Hacks . | . . Recycling Unit Hacks . | . . Scanalyzer . | . . Garrison Access Hacks . | . . Unauthorized Hacks . | . . Terminals . | . . Fabricators . | . . Repair Stations . | . . Recycling Units . | . . Scanalyzers . | . . Garrison Access . | . . Data Cores Recovered . | . . Used . | . . Hacking Detections . | . . Full Trace Events . | . . Feedback Events . | . . Feedback Blocked . | . . Robot Schematics Acquired . | . . Robots Built . | . . Matter . | . . Time . | . . Total Robot Build Rating . | . . Part Schematics Acquired . | . . Parts Built . | . . Matter . | . . Time . | . . Total Part Build Rating . | . . Parts Repaired . | . . Time . | . . Parts Recycled . | . . Recycled Matter . | . . Retrieved Matter . | . . Retrieved Components . | . . Parts Scanalyzed . | . . Part Schematics Acquired . | . . Parts Damaged . | . . Bothacking | -11 -10 ------------ Run | Scr Mat Used RIF Installer . | . . Robots Hacked . | . . Non-combat . | . . Combat . | . . Robot Hacks Applied . | . . Relay Couplers Released . | . . Robots Rewired . | . . Allies Hacked . | . . Hacks Repelled . | . . Allies | -11 -10 -------- Run | Scr Mat Total Allies . | . . Largest Group . | . . Highest-Rated Group . | . . Highest-Rated Ally . | . . Total Orders . | . . Ally Attacks . | . . Total Damage . | . . Kills . | . . Allies Corrupted . | . . Allies Melted . | . . Intel | -11 -10 ------- Run | Scr Mat Robot Analysis Total . | . . Derelict Logs Recovered . | . . Drone Launches . | . . Drone Recoveries . | . . Exploration | -11 -10 ------------- Run | Scr Mat Turns Passed 301 | 158 143 Spaces Moved 131 | 76 55 Core 21 | 17 4 Treads 110 | 59 51 Legs . | . . Wheels . | . . Hover . | . . Flight . | . . Fastest Speed 50 | 50 160 Average Speed 158 | 135 189 Slowest Speed 550 | 160 550 Overloaded Moves . | . . Propulsion Burnouts . | . . Robots Hopped . | . . Cave-ins Triggered . | . . Exploration Rate (%) 9 | 5 14 Regions Visited 1 Branch Regions . Pre-discovered Areas . | . . Known Exits Taken . | . . Unknown Exits Taken 1 | 1 . Scrap Searched . | . . Spaces Dug . | . . Terrain Destroyed . | . . Melee . | . . Projectile . | . . AOE . | . . Terrain Rammed . | . . Walls Destroyed . | . . Machines Disabled . | . . Actions | -11 -10 --------- Run | Scr Mat Total 184 | 106 78 Wait . | . . Move 130 | 75 55 Hop . | . . Pick Up 15 | 10 5 Fast Attach . | . . Attach 9 | 7 2 Detach 2 | . 2 Swap . | . . Drop 2 | 1 1 Fire 21 | 13 8 Melee . | . . Ram . | . . Kick . | . . Crush 5 | . 5 Escape Stasis . | . . Rewire . | . . Trap . | . . Miscellaneous . | . . Route ------- -11/Scrapyard -10/Materials History --------- Turn | Location | Event 6 | -11/Scrapyard | Discovered new exit (range 14) 159 | -11/Scrapyard | Entered Materials 287 | -10/Materials | Core integrity fell below 50% 298 | -10/Materials | Core integrity fell below 20% 302 | -10/Materials | Destroyed by S-10 Pest with Light Assault Rifle Last Messages --------------- 00206_ K-01 Serf destroyed. 00209_ U-05 Engineer destroyed. 00223_ Acquired Wheel. 00224_ Extracted 20 matter. 00226_ Acquired Med. Matter Pod. 00237_ K-01 Serf cleans the Terminal. 00244_ S-10 Pest destroyed. 00248_ K-01 Serf collects debris. 00253_ Lgt. Ion Engine destroyed. 00259_ Med. Laser destroyed. 00261_ Slammed into S-10 Pest. 00266_ O-16 Technician: "IFF HANDSHAKE FAILED. SECURING TERMINAL." 00267_ Slammed into S-10 Pest. 00273_ ALERT: Hostiles spotted, dispatching reinforcements to Terminal M002. 00275_ ALERT: Hostiles spotted, dispatching reinforcements to Terminal M007. 00275_ Lgt. Treads destroyed. 00283_ S-10 Pest destroyed. 00297_ K-01 Serf collects debris. Map ----- +----------------------------------------------------+ | ????????????##! ##?????????????????????????????? | | ????????????#! ! !#?????????????????????????????? | | ????????????#! !#?????????????????????????????? | | ?????????#### ########+######+#?????????????? | | ?????????# ????????????? | | ?????????# ????????????? | | ?????????# ????????????? | | ?????????########### ##########???????????????? | | ???????????????????# #????????????????????????? | | ???????????????????# ########?????????????????? | | ???????????????????# # #?????????????????? | | ???????????????????# |#""" #?????????????????? | | ???????????????????# =%#""" #?????????????????? | | ???????????????????# %#""" #?????????????????? | | ???????????????????# ! # #?????????????????? | | ???????????????????# =# #?????????????????? | | ???????????????????# ##+########??????????????? | | ???????????????????# [%= #??????????????? | | ???????????????????# s = + ?????????? | | ???????????????????# !!%s """ # ?????????? | | ???????????????????# !!= s""" #??????????????? | | ???????????????????# ! """ ##?????????????? | | ???????????????????# w""" #?????????????? | | ???????????????????# """ #?????????????? | | ???????????????????+ #?????????????? | | ?????????????????? #k @ #?????????????? | | ????????????????? #k #?????????????? | | ???????????????? ?# ####T# ##?????????????? | | ???????????????###?# #???## ^#??????????????? | | ????????????????? #?????? #??????????????? | | ?????????????? %#?????? #??????????????? | | ????????????? #????????#??????????????? | | ?????????????#####+###+##????????????????????????? | | ???????????????? ??????????????????????????????? | | ??????????????? ???????????????????????????????? | | ??????????????# ????????????????????????????????? | | ??????????????# ?????????????????????????????????? | | ?????????????????????????????????????????????????? | | ?????????????????????????????????????????????????? | | ?????????????????????????????????????????????????? | | ?????????????????????????????????????????????????? | | ?????????????????????????????????????????????????? | | ?????????????????????????????????????????????????? | | ?????????????????????????????????????????????????? | | ?????????????????????????????????????????????????? | | ?????????????????????????????????????????????????? | | ?????????????????????????????????????????????????? | | ?????????????????????????????????????????????????? | | ?????????????????????????????????????????????????? | | ?????????????????????????????????????????????????? | +----------------------------------------------------+ Best States ------------- Heat Dissipation 25 Energy Generation 10 Energy Capacity 125 Matter Stores 300 Matter Capacity 300 Sight Range 16 Terrain Scan Density 60 Evasion (%) 50 Recoil Reduction 2 Item Schematics ----------------- None Robot Schematics ------------------ None Fabricated ------------ Nothing Alien Tech Used ----------------- None Achievements -------------- None Challenges ------------ None Game ------ Seed HardlightTiamatMapper Manual? 0 Play Time 00:05:34 Cumulative 1.8 hours Start 2021.04.28 @ 18:13:37 End 2021.06.07 @ 10:41:39 Sessions 2 Manual Loads 0 Difficulty Rogue Special Mode None Game No. 10 Rogue 10 Adventurer 0 Explorer 0 Win Type - Total 0 Types 0/0/0/0/0/0/0/0/0 Lore% 2 Gallery% 4 Achievement% 5 Wizard Run 0 Options --------- ASCII 0 Keyboard 0 Movement Mouse Keybinds 0 Fullscreen 2 Font 24/Cog Map View 76x50 Tactical HUD 1 Map Filters NONE Filters NONE Steam 1 RUN: 5a6b582d-d662-4599-a6fd-8c23d1fbe5db